[Event "24th Bosnjaci Open 2019"]
[Site "Bosnjaci"]
[Date "2019.01.04"]
[Round "2.17"]
[White "Turicar, Goran"]
[Black "Ljikar, Zoran"]
[Result "0-1"]
[ECO "B40"]
[WhiteElo "1862"]
[BlackElo "2207"]
[Annotator "NA"]
[PlyCount "72"]
[EventDate "2019.01.03"]
[EventType "swiss"]
[EventCountry "CRO"]
[SourceTitle "playchess.com"]
[Source "ChessBase"]
[SourceQuality "1"]
[TimeControl "5400+30"]

1. e4 {[%emt 0:00:30]} c5 {[%emt 0:00:30]} 2. Nf3 {[%emt 0:00:00]} e6 {[%emt 0:00:00]} 3. c3 {[%emt 0:01:00]} Nf6 {[%emt 0:00:00]} 4. d3 {[%emt 0:00:30]} d5 {[%emt 0:00:30]} 5. e5 {[%emt 0:01:30]} Nfd7 {[%emt 0:00:30]} 6. Be2 {[%emt 0:00:30]} Nc6 {[%emt 0:02:30]} 7. d4 {[%emt 0:05:30]} Be7 {[%emt 0:00:30]} 8. O-O {[%emt 0:01:30]} O-O {[%emt 0:16:30]} 9. Bd3 {[%emt 0:00:30]} f6 {[%emt 0:06:30]} 10. Bf4 {[%emt 0:07:30]} fxe5 {[%emt 0:07:30]} 11. Bxe5 {[%emt 0:00:30]} Ndxe5 {[%emt 0:04:30]} 12. dxe5 {[%emt 0:00:30]} c4 {[%emt 0:08:30]} 13. Bc2 {[%emt 0:00:30]} Bd7 {[%emt 0:01:30]} 14. Re1 {[%emt 0:06:30]} b5 {[%emt 0:01:30]} 15. Nd4 {[%emt 0:01:30]} Nxd4 {[%emt 0:04:30]} 16. cxd4 {[%emt 0:00:30]} g6 {[%emt 0:01:30]} 17. Qg4 {[%emt 0:04:30]} Qe8 {[%emt 0:08:30]} 18. Nc3 {[%emt 0:04:30]} b4 {[%emt 0:01:30]} 19. Ne2 {[%emt 0:01:30]} Qf7 {[%emt 0:00:30]} 20. Rf1 {[%emt 0:00:30]} a5 {[%emt 0:00:30]} 21. h4 {[%emt 0:01:30]} Kh8 {[%emt 0:00:30]} 22. f4 {[%emt 0:04:30]} a4 {[%emt 0:00:30]} 23. Rf3 {[%emt 0:01:30]} b3 {[%emt 0:00:30]} 24. Bb1 {[%emt 0:05:30]} a3 {[%emt 0:02:30]} 25. axb3 {[%emt 0:02:30]} axb2 {[%emt 0:00:00]} 26. Rxa8 {[%emt 0:02:30]} Rxa8 {[%emt 0:00:00]} 27. bxc4 {[%emt 0:01:30]} Ra1 {[%emt 0:00:00]} 28. Rf1 {[%emt 0:00:30]} dxc4 {[%emt 0:00:00]} 29. Nc3 {[%emt 0:00:30]} Bb4 {[%emt 0:00:30]} 30. Na2 {[%emt 0:03:30]} Bd2 {[%emt 0:04:30]} 31. Qf3 {[%emt 0:00:30]} c3 {[%emt 0:08:32]} 32. Qe4 {[%emt 0:02:30]} Kg7 {[%emt 0:01:48]} 33. g3 {[%emt 0:00:30]} Rxb1 {[%emt 0:02:50]} 34. Qxb1 {[%emt 0:06:30]} Qf5 {[%emt 0:00:50]} 35. Nxc3 {[%emt 0:01:30]} Bxc3 {[%emt 0:00:10]} 36. Qa2 {[%emt 0:01:30]} Qd3 {[%emt 0:03:50]} 0-1

[Event "24th Bosnjaci Open 2019"]
[Site "Bosnjaci"]
[Date "2019.01.04"]
[Round "2.18"]
[White "Klasan, Elvis"]
[Black "Cvitan, Ena"]
[Result "1/2-1/2"]
[ECO "B13"]
[WhiteElo "1861"]
[BlackElo "2201"]
[Annotator "NA"]
[PlyCount "121"]
[EventDate "2019.01.03"]
[EventType "swiss"]
[EventCountry "CRO"]
[SourceTitle "playchess.com"]
[Source "ChessBase"]
[SourceQuality "1"]
[TimeControl "5400+30"]

1. e4 {[%emt 0:00:30]} c6 {[%emt 0:00:30]} 2. Nf3 {[%emt 0:00:30]} d5 {[%emt 0:00:00]} 3. exd5 {[%emt 0:00:30]} cxd5 {[%emt 0:00:00]} 4. d4 {[%emt 0:00:30]} Nc6 {[%emt 0:00:00]} 5. Ne5 {[%emt 0:01:30]} Nf6 {[%emt 0:00:00]} 6. Bb5 {[%emt 0:00:30]} Bd7 {[%emt 0:00:30]} 7. Nxd7 {[%emt 0:01:30]} Qxd7 {[%emt 0:00:00]} 8. c3 {[%emt 0:00:30]} e6 {[%emt 0:01:00]} 9. O-O {[%emt 0:04:30]} Bd6 {[%emt 0:00:30]} 10. Nd2 {[%emt 0:09:30]} Qc7 {[%emt 0:03:30]} 11. Nf3 {[%emt 0:02:30]} a6 {[%emt 0:03:30]} 12. Bd3 {[%emt 0:01:30]} Ne4 {[%emt 0:00:30]} 13. h3 {[%emt 0:05:30]} h6 {[%emt 0:17:30]} 14. Bxe4 {[%emt 0:17:30]} dxe4 {[%emt 0:00:30]} 15. Nd2 {[%emt 0:00:30]} f5 {[%emt 0:00:30]} 16. Qh5+ {[%emt 0:01:30]} Qf7 {[%emt 0:00:00]} 17. Qxf7+ {[%emt 0:00:30]} Kxf7 {[%emt 0:00:00]} 18. Nc4 {[%emt 0:01:30]} Bc7 {[%emt 0:00:00]} 19. f3 {[%emt 0:01:30]} b5 {[%emt 0:02:00]} 20. Ne5+ {[%emt 0:06:30]} Nxe5 {[%emt 0:03:30]} 21. dxe5 {[%emt 0:00:30]} exf3 {[%emt 0:00:00]} 22. Rxf3 {[%emt 0:00:30]} Bxe5 {[%emt 0:00:00]} 23. Bf4 {[%emt 0:03:30]} Bf6 {[%emt 0:03:30]} 24. Rd3 {[%emt 0:00:30]} Rhd8 {[%emt 0:01:30]} 25. Rad1 {[%emt 0:00:30]} Rxd3 {[%emt 0:00:30]} 26. Rxd3 {[%emt 0:00:30]} Rd8 {[%emt 0:00:00]} 27. Rxd8 {[%emt 0:00:30]} Bxd8 {[%emt 0:00:00]} 28. Kf2 {[%emt 0:01:30]} Bf6 {[%emt 0:00:30]} 29. Ke2 {[%emt 0:00:30]} e5 {[%emt 0:00:30]} 30. Be3 {[%emt 0:00:30]} Ke6 {[%emt 0:00:00]} 31. Kd3 {[%emt 0:00:30]} Kd5 {[%emt 0:00:00]} 32. b3 {[%emt 0:00:30]} e4+ {[%emt 0:00:30]} 33. Kc2 {[%emt 0:01:30]} h5 {[%emt 0:07:30]} 34. a4 {[%emt 0:03:30]} g5 {[%emt 0:01:30]} 35. axb5 {[%emt 0:00:30]} axb5 {[%emt 0:00:00]} 36. g3 {[%emt 0:00:30]} g4 {[%emt 0:03:00]} 37. hxg4 {[%emt 0:02:30]} fxg4 {[%emt 0:00:30]} 38. Bf2 {[%emt 0:00:30]} Be5 {[%emt 0:03:30]} 39. Be1 {[%emt 0:00:30]} Ke6 {[%emt 0:06:30]} 40. Kd2 {[%emt 0:02:30]} Kf5 {[%emt 0:00:30]} 41. Ke2 {[%emt 0:03:30]} h4 {[%emt 0:03:30]} 42. gxh4 {[%emt 0:00:30]} g3 {[%emt 0:00:00]} 43. Kf1 {[%emt 0:02:30]} Kg4 {[%emt 0:00:00]} 44. Kg2 {[%emt 0:00:30]} Kxh4 {[%emt 0:00:30]} 45. c4 {[%emt 0:00:00]} bxc4 {[%emt 0:00:30]} 46. bxc4 {[%emt 0:00:00]} Kg4 {[%emt 0:00:30]} 47. c5 {[%emt 0:00:30]} e3 {[%emt 0:00:30]} 48. c6 {[%emt 0:02:30]} e2 {[%emt 0:08:30]} 49. Bd2 {[%emt 0:02:30]} Bc7 {[%emt 0:01:30]} 50. Be1 {[%emt 0:00:30]} Bf4 {[%emt 0:00:00]} 51. Bc3 {[%emt 0:01:40]} Kf5 {[%emt 0:05:00]} 52. Kf3 {[%emt 0:02:20]} Be5 {[%emt 0:00:30]} 53. Be1 {[%emt 0:00:36]} g2 {[%emt 0:00:30]} 54. Kxg2 {[%emt 0:00:27]} Ke4 {[%emt 0:00:00]} 55. Ba5 {[%emt 0:03:03]} Ke3 {[%emt 0:00:00]} 56. Bb6+ {[%emt 0:01:18]} Kd2 {[%emt 0:01:30]} 57. Ba5+ {[%emt 0:00:20]} Kd1 {[%emt 0:02:30]} 58. Kf3 {[%emt 0:01:16]} Bc7 {[%emt 0:00:30]} 59. Bb4 {[%emt 0:00:21]} Bd6 {[%emt 0:00:30]} 60. Ba5 {[%emt 0:00:16]} Be5 {[%emt 0:00:30]} 61. Bb4 {[%emt 0:00:21]} 1/2-1/2

[Event "24th Bosnjaci Open 2019"]
[Site "Bosnjaci"]
[Date "2019.01.04"]
[Round "2.19"]
[White "Babic, Zvonko"]
[Black "Pejic, Ivo"]
[Result "1/2-1/2"]
[ECO "A05"]
[WhiteElo "2190"]
[BlackElo "1845"]
[Annotator "NA"]
[PlyCount "112"]
[EventDate "2019.01.03"]
[EventType "swiss"]
[EventCountry "CRO"]
[SourceTitle "playchess.com"]
[Source "ChessBase"]
[SourceQuality "1"]
[TimeControl "5400+30"]

1. Nf3 {[%emt 0:00:30]} d6 {[%emt 0:00:30]} 2. g3 {[%emt 0:00:30]} Nf6 {[%emt 0:00:30]} 3. Bg2 {[%emt 0:00:00]} g6 {[%emt 0:01:30]} 4. O-O {[%emt 0:00:00]} Bg7 {[%emt 0:00:30]} 5. c4 {[%emt 0:00:00]} Nbd7 {[%emt 0:01:30]} 6. Nc3 {[%emt 0:01:00]} a6 {[%emt 0:00:30]} 7. d3 {[%emt 0:02:30]} c5 {[%emt 0:01:30]} 8. Rb1 {[%emt 0:01:30]} Rb8 {[%emt 0:02:30]} 9. a3 {[%emt 0:05:30]} Qc7 {[%emt 0:06:30]} 10. Bd2 {[%emt 0:01:30]} b6 {[%emt 0:04:30]} 11. b4 {[%emt 0:03:30]} O-O {[%emt 0:02:30]} 12. Qb3 {[%emt 0:01:30]} e6 {[%emt 0:11:30]} 13. Rfc1 {[%emt 0:04:30]} Ng4 {[%emt 0:02:30]} 14. h3 {[%emt 0:04:30]} Ngf6 {[%emt 0:04:30]} 15. Qa2 {[%emt 0:03:30]} Bb7 {[%emt 0:04:30]} 16. a4 {[%emt 0:02:30]} e5 {[%emt 0:03:30]} 17. a5 {[%emt 0:07:30]} cxb4 {[%emt 0:05:30]} 18. axb6 {[%emt 0:01:30]} Nxb6 {[%emt 0:05:30]} 19. Rxb4 {[%emt 0:00:30]} Nbd7 {[%emt 0:03:30]} 20. Rcb1 {[%emt 0:04:30]} Nc5 {[%emt 0:04:30]} 21. Qb2 {[%emt 0:11:30]} Nfd7 {[%emt 0:03:30]} 22. Qc2 {[%emt 0:12:30]} Rfe8 {[%emt 0:02:30]} 23. e4 {[%emt 0:03:30]} Rf8 {[%emt 0:03:30]} 24. Nd5 {[%emt 0:07:30]} Bxd5 {[%emt 0:01:30]} 25. cxd5 {[%emt 0:00:30]} Rxb4 {[%emt 0:02:30]} 26. Rxb4 {[%emt 0:01:17]} Qa5 {[%emt 0:01:30]} 27. Kh2 {[%emt 0:02:02]} Qc7 {[%emt 0:02:15]} 28. d4 {[%emt 0:01:11]} exd4 {[%emt 0:01:45]} 29. Nxd4 {[%emt 0:01:00]} Bxd4 {[%emt 0:04:10]} 30. Rxd4 {[%emt 0:00:05]} Re8 {[%emt 0:01:13]} 31. Rb4 {[%emt 0:00:53]} a5 {[%emt 0:00:51]} 32. Ra4 {[%emt 0:01:03]} Ra8 {[%emt 0:00:16]} 33. Qc3 {[%emt 0:00:26]} Qd8 {[%emt 0:02:01]} 34. Rxa5 {[%emt 0:01:20]} Rxa5 {[%emt 0:00:01]} 35. Qxa5 {[%emt 0:00:08]} Qe7 {[%emt 0:00:03]} 36. Qc7 {[%emt 0:02:09]} Qe5 {[%emt 0:02:53]} 37. Bf4 {[%emt 0:01:40]} Qb2 {[%emt 0:00:13]} 38. Bxd6 {[%emt 0:00:34]} Qxf2 {[%emt 0:00:03]} 39. Bf4 {[%emt 0:02:39]} Kg7 {[%emt 0:00:53]} 40. Qa7 {[%emt 0:03:47]} h6 {[%emt 0:00:13]} 41. Qa1+ {[%emt 0:00:10]} Kh7 {[%emt 0:00:08]} 42. Bxh6 {[%emt 0:00:21]} f6 {[%emt 0:00:38]} 43. Bf4 {[%emt 0:00:38]} g5 {[%emt 0:00:24]} 44. Bd6 {[%emt 0:00:06]} Nxe4 {[%emt 0:00:41]} 45. Qb1 {[%emt 0:01:06]} f5 {[%emt 0:00:40]} 46. Qb7 {[%emt 0:00:14]} Nef6 {[%emt 0:00:23]} 47. Qc7 {[%emt 0:02:30]} Kg6 {[%emt 0:00:05]} 48. Qc6 {[%emt 0:04:36]} f4 {[%emt 0:00:56]} 49. Qc4 {[%emt 0:00:31]} Qxg3+ {[%emt 0:00:48]} 50. Kg1 {[%emt 0:01:00]} Qe1+ {[%emt 0:01:01]} 51. Qf1 {[%emt 0:00:40]} Qxf1+ {[%emt 0:00:45]} 52. Kxf1 {[%emt 0:00:04]} Kf5 {[%emt 0:00:13]} 53. Ke2 {[%emt 0:01:02]} Ne5 {[%emt 0:00:29]} 54. Be7 {[%emt 0:00:31]} f3+ {[%emt 0:00:13]} 55. Bxf3 {[%emt 0:00:05]} Nxf3 {[%emt 0:00:05]} 56. Kxf3 {[%emt 0:01:04]} Nxd5 {[%emt 0:10:41]} 1/2-1/2

[Event "24th Bosnjaci Open 2019"]
[Site "Bosnjaci"]
[Date "2019.01.04"]
[Round "2.20"]
[White "Kolanovic, Kazimir"]
[Black "Lazor, Vladimir"]
[Result "1/2-1/2"]
[ECO "E81"]
[WhiteElo "1851"]
[BlackElo "2164"]
[Annotator "NA"]
[PlyCount "108"]
[EventDate "2019.01.03"]
[EventType "swiss"]
[EventCountry "CRO"]
[SourceTitle "playchess.com"]
[Source "ChessBase"]
[SourceQuality "1"]
[TimeControl "5400+30"]

1. d4 {[%emt 0:01:30]} Nf6 {[%emt 0:00:30]} 2. c4 {[%emt 0:01:30]} g6 {[%emt 0:00:00]} 3. Nc3 {[%emt 0:00:00]} Bg7 {[%emt 0:00:00]} 4. e4 {[%emt 0:01:00]} d6 {[%emt 0:00:30]} 5. f3 {[%emt 0:00:30]} O-O {[%emt 0:01:30]} 6. Be3 {[%emt 0:00:30]} a6 {[%emt 0:00:30]} 7. Qd2 {[%emt 0:00:30]} c6 {[%emt 0:01:30]} 8. Bd3 {[%emt 0:07:30]} e5 {[%emt 0:02:30]} 9. Nge2 {[%emt 0:00:30]} Nbd7 {[%emt 0:02:30]} 10. O-O {[%emt 0:02:30]} Qe7 {[%emt 0:08:30]} 11. Rac1 {[%emt 0:19:30]} exd4 {[%emt 0:13:30]} 12. Nxd4 {[%emt 0:01:30]} Re8 {[%emt 0:02:30]} 13. Rfe1 {[%emt 0:06:30]} Ne5 {[%emt 0:00:30]} 14. Bf1 {[%emt 0:05:30]} Bd7 {[%emt 0:02:30]} 15. Nb3 {[%emt 0:10:30]} Be6 {[%emt 0:06:30]} 16. Nb1 {[%emt 0:07:30]} b5 {[%emt 0:05:30]} 17. Na3 {[%emt 0:03:30]} Rac8 {[%emt 0:03:30]} 18. Nd4 {[%emt 0:05:30]} Bd7 {[%emt 0:06:30]} 19. Kh1 {[%emt 0:11:55]} c5 {[%emt 0:01:30]} 20. Nb3 {[%emt 0:02:05]} b4 {[%emt 0:01:30]} 21. Nb1 {[%emt 0:01:52]} Be6 {[%emt 0:00:30]} 22. Qc2 {[%emt 0:01:49]} Nc6 {[%emt 0:02:30]} 23. Rcd1 {[%emt 0:00:31]} a5 {[%emt 0:01:30]} 24. Nc1 {[%emt 0:00:22]} Nd7 {[%emt 0:00:30]} 25. Ne2 {[%emt 0:00:51]} Nb6 {[%emt 0:01:30]} 26. b3 {[%emt 0:00:42]} Rcd8 {[%emt 0:05:30]} 27. a4 {[%emt 0:02:32]} bxa3 {[%emt 0:01:30]} 28. Nxa3 {[%emt 0:00:04]} Nb4 {[%emt 0:00:30]} 29. Qc1 {[%emt 0:01:31]} a4 {[%emt 0:00:30]} 30. bxa4 {[%emt 0:02:05]} Nxa4 {[%emt 0:00:30]} 31. Bg5 {[%emt 0:02:33]} f6 {[%emt 0:04:30]} 32. Bf4 {[%emt 0:00:00]} f5 {[%emt 0:04:30]} 33. Bg5 {[%emt 0:00:28]} Bf6 {[%emt 0:00:30]} 34. Bxf6 {[%emt 0:00:02]} Qxf6 {[%emt 0:00:30]} 35. Rd2 {[%emt 0:01:14]} fxe4 {[%emt 0:00:30]} 36. fxe4 {[%emt 0:00:01]} Bg4 {[%emt 0:00:30]} 37. Ng3 {[%emt 0:00:28]} Nc6 {[%emt 0:07:09]} 38. Nb5 {[%emt 0:00:23]} Nb6 {[%emt 0:00:38]} 39. Qb2 {[%emt 0:01:06]} Qxb2 {[%emt 0:02:52]} 40. Rxb2 {[%emt 0:00:00]} Nc8 {[%emt 0:00:29]} 41. Nc7 {[%emt 0:00:41]} Rf8 {[%emt 0:01:11]} 42. h3 {[%emt 0:00:37]} Bd7 {[%emt 0:00:26]} 43. Kg1 {[%emt 0:00:45]} N8e7 {[%emt 0:00:47]} 44. Ne2 {[%emt 0:00:44]} Ne5 {[%emt 0:01:45]} 45. Nc3 {[%emt 0:00:26]} Bc6 {[%emt 0:02:07]} 46. Ne6 {[%emt 0:00:53]} Rb8 {[%emt 0:00:00]} 47. Rd2 {[%emt 0:00:09]} Rf6 {[%emt 0:00:40]} 48. Nc7 {[%emt 0:00:32]} Rb4 {[%emt 0:01:12]} 49. N3b5 {[%emt 0:00:32]} Nxc4 {[%emt 0:01:18]} 50. Bxc4+ {[%emt 0:00:17]} Rxc4 {[%emt 0:00:02]} 51. Nxd6 {[%emt 0:00:21]} Rd4 {[%emt 0:00:07]} 52. Rxd4 {[%emt 0:00:23]} cxd4 {[%emt 0:00:02]} 53. e5 {[%emt 0:00:55]} Rf8 {[%emt 0:04:20]} 54. Ne6 {[%emt 0:00:11]} Ra8 {[%emt 0:00:25]} 1/2-1/2

[Event "24th Bosnjaci Open 2019"]
[Site "Bosnjaci"]
[Date "2019.01.04"]
[Round "2.21"]
[White "Jelecevic, Ivo"]
[Black "Krso, Enver"]
[Result "1-0"]
[ECO "B38"]
[WhiteElo "2112"]
[BlackElo "1840"]
[Annotator "NA"]
[PlyCount "33"]
[EventDate "2019.01.03"]
[EventType "swiss"]
[EventCountry "CRO"]
[SourceTitle "playchess.com"]
[Source "ChessBase"]
[SourceQuality "1"]
[TimeControl "5400+30"]

1. e4 {[%emt 0:00:30]} c5 {[%emt 0:00:30]} 2. Nf3 {[%emt 0:00:00]} Nc6 {[%emt 0:00:30]} 3. d4 {[%emt 0:00:00]} cxd4 {[%emt 0:00:30]} 4. Nxd4 {[%emt 0:00:00]} g6 {[%emt 0:02:30]} 5. c4 {[%emt 0:00:00]} Bg7 {[%emt 0:00:30]} 6. Be3 {[%emt 0:00:30]} Nf6 {[%emt 0:02:30]} 7. Nc3 {[%emt 0:05:30]} O-O {[%emt 0:04:30]} 8. Be2 {[%emt 0:02:30]} d6 {[%emt 0:03:30]} 9. O-O {[%emt 0:05:30]} Bd7 {[%emt 0:05:30]} 10. Rc1 {[%emt 0:01:30]} b6 {[%emt 0:13:30]} 11. a3 {[%emt 0:07:30]} Qc8 {[%emt 0:07:30]} 12. f3 {[%emt 0:01:30]} Ne5 {[%emt 0:03:30]} 13. Nd5 {[%emt 0:01:30]} Nc6 {[%emt 0:00:30]} 14. Nxc6 {[%emt 0:03:30]} Nxd5 {[%emt 0:01:30]} 15. cxd5 {[%emt 0:00:30]} Bxc6 {[%emt 0:01:30]} 16. Rxc6 {[%emt 0:00:00]} Qd8 {[%emt 0:00:00]} 17. Bd4 {[%emt 0:00:00]} 1-0

[Event "24th Bosnjaci Open 2019"]
[Site "Bosnjaci"]
[Date "2019.01.04"]
[Round "2.22"]
[White "Novosad, Ivan"]
[Black "Boban, Sten"]
[Result "0-1"]
[ECO "E90"]
[WhiteElo "1840"]
[BlackElo "2105"]
[Annotator "NA"]
[PlyCount "70"]
[EventDate "2019.01.03"]
[EventType "swiss"]
[EventCountry "CRO"]
[SourceTitle "playchess.com"]
[Source "ChessBase"]
[SourceQuality "1"]
[TimeControl "5400+30"]

1. c4 {[%emt 0:07:30]} Nf6 {[%emt 0:03:30]} 2. Nc3 {[%emt 0:06:30]} g6 {[%emt 0:00:30]} 3. Nf3 {[%emt 0:00:30]} Bg7 {[%emt 0:00:30]} 4. d4 {[%emt 0:00:30]} d6 {[%emt 0:00:30]} 5. h3 {[%emt 0:01:30]} Nbd7 {[%emt 0:00:00]} 6. e4 {[%emt 0:01:30]} e5 {[%emt 0:00:00]} 7. dxe5 {[%emt 0:03:30]} dxe5 {[%emt 0:00:30]} 8. Bg5 {[%emt 0:01:30]} h6 {[%emt 0:05:30]} 9. Be3 {[%emt 0:00:30]} O-O {[%emt 0:00:30]} 10. Qc2 {[%emt 0:01:30]} c6 {[%emt 0:02:30]} 11. Rd1 {[%emt 0:11:30]} Qe7 {[%emt 0:05:30]} 12. Qd2 {[%emt 0:07:30]} Nc5 {[%emt 0:07:30]} 13. Qc2 {[%emt 0:19:30]} Nh5 {[%emt 0:12:30]} 14. Qd2 {[%emt 0:04:30]} Nf6 {[%emt 0:16:30]} 15. Qc2 {[%emt 0:02:30]} a5 {[%emt 0:03:30]} 16. Nh2 {[%emt 0:06:30]} Be6 {[%emt 0:01:30]} 17. Be2 {[%emt 0:06:07]} Nfd7 {[%emt 0:03:30]} 18. g4 {[%emt 0:01:30]} a4 {[%emt 0:02:30]} 19. b4 {[%emt 0:03:22]} axb3 {[%emt 0:00:30]} 20. axb3 {[%emt 0:00:12]} Ra3 {[%emt 0:00:30]} 21. Rb1 {[%emt 0:01:43]} Rfa8 {[%emt 0:05:30]} 22. Nf3 {[%emt 0:01:58]} Na6 {[%emt 0:03:30]} 23. Na4 {[%emt 0:01:49]} Nb4 {[%emt 0:01:30]} 24. Qc1 {[%emt 0:01:11]} Ra2 {[%emt 0:11:04]} 25. Rb2 {[%emt 0:03:47]} Rxb2 {[%emt 0:02:45]} 26. Qxb2 {[%emt 0:01:06]} Ra5 {[%emt 0:04:11]} 27. O-O {[%emt 0:00:34]} f5 {[%emt 0:00:24]} 28. Nd2 {[%emt 0:01:53]} f4 {[%emt 0:04:11]} 29. Bb6 {[%emt 0:00:35]} Rxa4 {[%emt 0:00:27]} 30. bxa4 {[%emt 0:01:09]} Nxb6 {[%emt 0:00:06]} 31. Rb1 {[%emt 0:00:28]} c5 {[%emt 0:00:06]} 32. a5 {[%emt 0:00:23]} Nd7 {[%emt 0:00:21]} 33. Nb3 {[%emt 0:00:35]} Bf8 {[%emt 0:00:23]} 34. Qa3 {[%emt 0:00:34]} h5 {[%emt 0:01:25]} 35. Qa4 {[%emt 0:00:30]} Qh4 {[%emt 0:00:37]} 0-1

[Event "24th Bosnjaci Open 2019"]
[Site "Bosnjaci"]
[Date "2019.01.04"]
[Round "2.23"]
[White "Tomas, Ante"]
[Black "Borzan, Andrej"]
[Result "1-0"]
[ECO "B09"]
[WhiteElo "2102"]
[BlackElo "1818"]
[Annotator "NA"]
[PlyCount "53"]
[EventDate "2019.01.03"]
[EventType "swiss"]
[EventCountry "CRO"]
[SourceTitle "playchess.com"]
[Source "ChessBase"]
[SourceQuality "1"]
[TimeControl "5400+30"]

1. e4 {[%emt 0:10:30]} d6 {[%emt 0:00:30]} 2. d4 {[%emt 0:00:30]} Nf6 {[%emt 0:00:00]} 3. Nc3 {[%emt 0:00:30]} g6 {[%emt 0:00:00]} 4. f4 {[%emt 0:00:30]} Bg7 {[%emt 0:00:30]} 5. Nf3 {[%emt 0:00:30]} O-O {[%emt 0:00:00]} 6. e5 {[%emt 0:03:30]} Ne8 {[%emt 0:03:00]} 7. Be3 {[%emt 0:04:30]} e6 {[%emt 0:00:30]} 8. h4 {[%emt 0:01:30]} b6 {[%emt 0:01:30]} 9. h5 {[%emt 0:00:30]} Bb7 {[%emt 0:00:30]} 10. hxg6 {[%emt 0:02:30]} fxg6 {[%emt 0:00:00]} 11. Ng5 {[%emt 0:00:30]} Qe7 {[%emt 0:01:00]} 12. Nxh7 {[%emt 0:01:30]} c5 {[%emt 0:02:30]} 13. Nxf8 {[%emt 0:01:30]} Qxf8 {[%emt 0:01:30]} 14. Qg4 {[%emt 0:01:30]} Qf7 {[%emt 0:00:30]} 15. Bd3 {[%emt 0:00:30]} cxd4 {[%emt 0:01:30]} 16. Bxg6 {[%emt 0:00:00]} Qe7 {[%emt 0:00:30]} 17. Bxd4 {[%emt 0:04:00]} Nc6 {[%emt 0:01:30]} 18. exd6 {[%emt 0:05:30]} Qxd6 {[%emt 0:00:30]} 19. Bxg7 {[%emt 0:01:30]} Nxg7 {[%emt 0:00:30]} 20. Rh8+ {[%emt 0:05:30]} Kxh8 {[%emt 0:00:30]} 21. Qh4+ {[%emt 0:00:00]} Kg8 {[%emt 0:00:30]} 22. Qh7+ {[%emt 0:00:00]} Kf8 {[%emt 0:00:30]} 23. Qh8+ {[%emt 0:00:00]} Ke7 {[%emt 0:00:00]} 24. Qxg7+ {[%emt 0:00:00]} Kd8 {[%emt 0:00:00]} 25. Rd1 {[%emt 0:00:30]} Nd4 {[%emt 0:01:30]} 26. Rxd4 {[%emt 0:00:30]} Bd5 {[%emt 0:00:30]} 27. Nxd5 {[%emt 0:00:30]} 1-0

[Event "24th Bosnjaci Open 2019"]
[Site "Bosnjaci"]
[Date "2019.01.04"]
[Round "2.24"]
[White "Mutapcic, Ilija"]
[Black "Potlimbrzovic, Zdenko"]
[Result "1-0"]
[ECO "E90"]
[WhiteElo "1836"]
[BlackElo "2094"]
[Annotator "NA"]
[PlyCount "79"]
[EventDate "2019.01.03"]
[EventType "swiss"]
[EventCountry "CRO"]
[SourceTitle "playchess.com"]
[Source "ChessBase"]
[SourceQuality "1"]
[TimeControl "5400+30"]

1. d4 {[%emt 0:00:30]} Nf6 {[%emt 0:00:30]} 2. Nf3 {[%emt 0:00:00]} g6 {[%emt 0:00:30]} 3. c4 {[%emt 0:00:00]} Bg7 {[%emt 0:00:00]} 4. Nc3 {[%emt 0:00:30]} O-O {[%emt 0:00:00]} 5. e4 {[%emt 0:00:00]} d6 {[%emt 0:00:30]} 6. h3 {[%emt 0:00:00]} Re8 {[%emt 0:07:30]} 7. Bg5 {[%emt 0:00:30]} c6 {[%emt 0:02:30]} 8. Be2 {[%emt 0:02:30]} Qa5 {[%emt 0:01:30]} 9. Qd2 {[%emt 0:00:30]} a6 {[%emt 0:02:30]} 10. a3 {[%emt 0:00:30]} b5 {[%emt 0:00:30]} 11. b4 {[%emt 0:00:30]} Qb6 {[%emt 0:02:30]} 12. O-O {[%emt 0:01:30]} Bb7 {[%emt 0:02:30]} 13. Rac1 {[%emt 0:03:30]} bxc4 {[%emt 0:05:30]} 14. Bxc4 {[%emt 0:00:30]} e6 {[%emt 0:02:30]} 15. Rfd1 {[%emt 0:01:30]} d5 {[%emt 0:03:30]} 16. Na4 {[%emt 0:02:30]} Qa7 {[%emt 0:02:30]} 17. exd5 {[%emt 0:01:30]} cxd5 {[%emt 0:05:30]} 18. Bd3 {[%emt 0:00:30]} Nc6 {[%emt 0:07:30]} 19. Nc5 {[%emt 0:01:30]} Bc8 {[%emt 0:11:30]} 20. b5 {[%emt 0:02:30]} Nb8 {[%emt 0:04:30]} 21. g4 {[%emt 0:01:30]} Nfd7 {[%emt 0:05:30]} 22. a4 {[%emt 0:01:30]} f6 {[%emt 0:01:30]} 23. Be3 {[%emt 0:00:30]} axb5 {[%emt 0:03:30]} 24. axb5 {[%emt 0:00:30]} Qb6 {[%emt 0:02:30]} 25. Kg2 {[%emt 0:02:30]} Bf8 {[%emt 0:00:00]} 26. Qc2 {[%emt 0:01:30]} Kg7 {[%emt 0:04:00]} 27. h4 {[%emt 0:00:30]} Qd6 {[%emt 0:02:30]} 28. h5 {[%emt 0:01:30]} e5 {[%emt 0:00:30]} 29. Nh4 {[%emt 0:06:30]} Nxc5 {[%emt 0:04:52]} 30. dxc5 {[%emt 0:01:30]} Qe6 {[%emt 0:02:06]} 31. Be2 {[%emt 0:03:30]} d4 {[%emt 0:02:20]} 32. hxg6 {[%emt 0:01:30]} Ra2 {[%emt 0:01:19]} 33. Nf5+ {[%emt 0:01:30]} Kh8 {[%emt 0:00:31]} 34. Qd3 {[%emt 0:03:30]} e4 {[%emt 0:02:54]} 35. Qc4 {[%emt 0:04:30]} dxe3 {[%emt 0:00:53]} 36. Rh1 {[%emt 0:00:30]} Qxc4 {[%emt 0:00:19]} 37. Rxh7+ {[%emt 0:00:30]} Kg8 {[%emt 0:00:03]} 38. Bxc4+ {[%emt 0:00:30]} Be6 {[%emt 0:00:31]} 39. Bxa2 {[%emt 0:00:30]} Bxa2 {[%emt 0:00:08]} 40. Ra1 {[%emt 0:00:30]} 1-0

[Event "24th Bosnjaci Open 2019"]
[Site "Bosnjaci"]
[Date "2019.01.05"]
[Round "4.4"]
[White "Tomas, Ante"]
[Black "Ivekovic, Bozidar"]
[Result "0-1"]
[ECO "B22"]
[WhiteElo "2102"]
[BlackElo "2398"]
[Annotator "NA"]
[PlyCount "58"]
[EventDate "2019.01.03"]
[EventType "swiss"]
[EventCountry "CRO"]
[SourceTitle "playchess.com"]
[Source "ChessBase"]
[SourceQuality "1"]
[TimeControl "5400+30"]

1. e4 {[%emt 0:00:30]} c5 {[%emt 0:00:30]} 2. c3 {[%emt 0:00:00]} d5 {[%emt 0:00:00]} 3. exd5 {[%emt 0:00:00]} Qxd5 {[%emt 0:00:00]} 4. d4 {[%emt 0:00:30]} Nf6 {[%emt 0:00:30]} 5. Nf3 {[%emt 0:00:00]} e6 {[%emt 0:01:30]} 6. Be3 {[%emt 0:00:00]} Nc6 {[%emt 0:07:30]} 7. dxc5 {[%emt 0:04:30]} Qxd1+ {[%emt 0:01:30]} 8. Kxd1 {[%emt 0:00:30]} Ng4 {[%emt 0:00:00]} 9. b4 {[%emt 0:03:30]} Nxe3+ {[%emt 0:03:00]} 10. fxe3 {[%emt 0:00:00]} a5 {[%emt 0:00:30]} 11. Bb5 {[%emt 0:00:00]} Bd7 {[%emt 0:02:30]} 12. Nbd2 {[%emt 0:19:30]} axb4 {[%emt 0:03:30]} 13. Bxc6 {[%emt 0:00:30]} Bxc6 {[%emt 0:00:00]} 14. cxb4 {[%emt 0:00:00]} g6 {[%emt 0:00:00]} 15. Nc4 {[%emt 0:23:00]} Bg7 {[%emt 0:06:30]} 16. Nd6+ {[%emt 0:02:30]} Ke7 {[%emt 0:00:30]} 17. Nd4 {[%emt 0:18:30]} Bxg2 {[%emt 0:09:30]} 18. Rg1 {[%emt 0:06:21]} Bd5 {[%emt 0:00:30]} 19. Rf1 {[%emt 0:00:35]} f5 {[%emt 0:00:30]} 20. a3 {[%emt 0:11:29]} Be5 {[%emt 0:00:30]} 21. Kd2 {[%emt 0:02:14]} Rhd8 {[%emt 0:11:30]} 22. Rfc1 {[%emt 0:03:27]} Bxh2 {[%emt 0:00:30]} 23. Rh1 {[%emt 0:00:50]} Bxh1 {[%emt 0:00:30]} 24. Rxh1 {[%emt 0:00:02]} Bxd6 {[%emt 0:00:00]} 25. Rxh7+ {[%emt 0:00:19]} Kf6 {[%emt 0:00:00]} 26. cxd6 {[%emt 0:00:05]} Rxd6 {[%emt 0:00:30]} 27. Kc2 {[%emt 0:01:13]} Rxa3 {[%emt 0:01:30]} 28. Rxb7 {[%emt 0:00:26]} Rxe3 {[%emt 0:00:00]} 29. Nb5 {[%emt 0:00:07]} Rd8 {[%emt 0:01:00]} 0-1